fUST/lending_fUST_20250812
["ID","MTS","AMOUNT","RATE_DAILY","PERIOD"]
[378722369,1754991040133,-460.0,0.00018533,2]
[378722371,1754991040145,-460.0,0.00018533,2]
[378722373,1754991040154,-460.0,0.00018533,2]
[378722374,1754991040165,-460.0,0.00018533,2]
[378722375,1754991040175,-472.14,0.00018533,2]
[378722376,1754991040184,-460.0,0.00018533,2]
[378722377,1754991040193,-461.39798508,0.00018533,2]
[378722378,1754991040202,-460.0,0.00018533,2]
[378722379,1754991040212,-500.0,0.00018533,2]
[378722380,1754991040222,-460.0,0.00018533,2]
[378722381,1754991040232,-500.0,0.00018533,2]
[378722382,1754991040253,-463.40565065,0.00018533,2]
[378722383,1754991040264,-464.18472493,0.00018533,2]
[378722384,1754991040274,-460.0,0.00018533,2]
[378722385,1754991040283,-462.62643715,0.00018533,2]
[378722386,1754991040293,-460.0,0.00018533,2]
[378722387,1754991040303,-460.0,0.00018533,2]
[378722388,1754991040313,-466.1317762,0.00018533,2]
[378722389,1754991040323,-460.0,0.00018533,2]
[378722390,1754991040333,-462.60862845,0.00018533,2]
[378722391,1754991040351,-465.34047687,0.00018533,2]
[378722392,1754991040361,-462.46650712,0.00018533,2]
[378722393,1754991040371,-460.0,0.00018533,2]
[378722394,1754991040381,-471.67666019,0.00018533,2]
[378722395,1754991040391,-460.0,0.00018533,2]
[378722396,1754991040402,-460.0,0.00018533,2]
[378722398,1754991040416,-460.0,0.00018533,2]
[378722400,1754991040425,-460.0,0.00018533,2]
[378722401,1754991040434,-460.0,0.00018533,2]
[378722402,1754991040443,-460.0,0.00018533,2]
[378722403,1754991040453,-460.0,0.00018533,2]
[378722404,1754991040462,-460.0,0.00018533,2]
[378722405,1754991040471,-460.0,0.00018533,2]
[378722406,1754991040481,-460.84498021,0.00018533,2]
[378722407,1754991040491,-464.24710867,0.00018533,2]
[378722408,1754991040500,-460.0,0.00018533,2]
[378722409,1754991040509,-460.0,0.00018533,2]
[378722410,1754991040518,-460.0,0.00018533,2]
[378722411,1754991040527,-465.79165812,0.00018533,2]
[378722412,1754991040536,-463.93464865,0.00018533,2]
[378722413,1754991040546,-460.0,0.00018533,2]
[378722414,1754991040555,-464.94595111,0.00018533,2]
[378722415,1754991040565,-465.76215952,0.00018533,2]
[378722416,1754991040574,-461.0734719,0.00018533,2]
[378722417,1754991040583,-460.0,0.00018533,2]
[378722418,1754991040593,-460.0,0.00018533,2]
[378722419,1754991040602,-460.0,0.00018533,2]
[378722421,1754991040611,-460.0,0.00018533,2]
[378722423,1754991040620,-460.0,0.00018533,2]
[378722425,1754991040629,-471.4234807,0.00018533,2]
[378722427,1754991040638,-460.0,0.00018533,2]
[378722429,1754991040647,-460.0,0.00018533,2]
[378722431,1754991040656,-460.0,0.00018533,2]
[378722432,1754991040666,-460.0,0.00018533,2]
[378722434,1754991040675,-460.0,0.00018533,2]
[378722435,1754991040684,-460.0,0.00018533,2]
[378722437,1754991040694,-460.0,0.00018533,2]
[378722439,1754991040703,-334.96765042,0.00018533,2]
[378722441,1754991040712,-838.04,0.00018533,2]
[378722443,1754991040722,-210.06870505,0.00018533,2]
[378722445,1754991040732,-460.7268572,0.00018533,2]
[378722447,1754991040741,-500.0,0.00018534,2]
[378722449,1754991040751,-500.0,0.00018534,2]
[378722451,1754991040760,-500.0,0.00018534,2]
[378722453,1754991040769,-150.0,0.00018534,2]
[378722455,1754991040778,-460.0,0.00018541,2]
[378722457,1754991040787,-460.0,0.00018541,2]
[378722459,1754991040797,-541.32983738,0.00018541,2]
[378722461,1754991040806,-465.50574935,0.00018541,2]
[378722463,1754991040815,-464.36232185,0.00018541,2]
[378722465,1754991040824,-460.0,0.00018541,2]
[378722467,1754991040833,-460.0,0.00018541,2]
[378722469,1754991040843,-463.51539421,0.00018541,2]
[378722471,1754991040852,-461.15372574,0.00018541,2]
[378722473,1754991040862,-460.0,0.00018541,2]
[378722475,1754991040872,-460.0,0.00018541,2]
[378722478,1754991040882,-461.38164276,0.00018541,2]
[378722479,1754991040892,-460.0,0.00018541,2]
[378722482,1754991040902,-460.0,0.00018541,2]
[378722483,1754991040913,-462.61088606,0.00018541,2]
[378722485,1754991040922,-460.0,0.00018541,2]
[378722486,1754991040931,-461.77607374,0.00018541,2]
[378722487,1754991040940,-460.0,0.00018541,2]
[378722488,1754991040949,-460.0,0.00018541,2]
[378722489,1754991040959,-573.66499687,0.00018541,2]
[378722490,1754991040968,-460.0,0.00018541,2]
[378722491,1754991040978,-460.0,0.00018541,2]
[378722492,1754991040991,-460.0,0.00018541,2]
[378722493,1754991041003,-460.0,0.00018541,2]
[378722494,1754991041016,-460.0,0.00018541,2]
[378722495,1754991041028,-460.0,0.00018541,2]
[378722496,1754991041040,-460.0,0.00018541,2]
[378722497,1754991041050,-460.0,0.00018541,2]
[378722498,1754991041061,-705.76,0.00018541,2]
[378722499,1754991041072,-539.2,0.00018541,2]
[378722500,1754991041084,-463.93110194,0.00018541,2]
[378722501,1754991041095,-460.0,0.00018541,2]
[378722502,1754991041108,-460.0,0.00018541,2]
[378722503,1754991041119,-461.21410257,0.00018541,2]
[378722504,1754991041131,-460.0,0.00018541,2]
[378722505,1754991041144,-460.0,0.00018541,2]
[378722506,1754991041156,-460.0,0.00018541,2]
[378722507,1754991041167,-460.0,0.00018541,2]
[378722508,1754991041180,-460.0,0.00018541,2]
[378722509,1754991041192,-460.0,0.00018541,2]
[378722510,1754991041204,-460.0,0.00018541,2]
[378722511,1754991041217,-553.78,0.00018541,2]
[378722512,1754991041229,-500.0,0.00018541,2]
[378722513,1754991041243,-460.0,0.00018541,2]
[378722514,1754991041254,-460.0,0.00018541,2]
[378722515,1754991041265,-463.51921754,0.00018541,2]
[378722516,1754991041275,-460.0,0.00018541,2]
[378722517,1754991041286,-460.0,0.00018541,2]
[378722518,1754991041298,-455.00783126,0.00018541,2]
[378722519,1754991041311,-460.0,0.00018541,2]
[378722520,1754991041322,-472.99043577,0.00018541,2]
[378722521,1754991041334,-460.0,0.00018541,2]
[378722522,1754991041345,-733.71,0.00018541,2]
[378722523,1754991041357,-464.40768588,0.00018541,2]
[378722524,1754991041368,-460.0,0.00018541,2]
[378722525,1754991041379,-460.0,0.00018541,2]
[378722526,1754991041392,-460.0,0.00018541,2]
[378722527,1754991041403,-460.0,0.00018541,2]
[378722528,1754991041413,-460.0,0.00018541,2]
[378722529,1754991041423,-646.45,0.00018541,2]
[378722530,1754991041435,-460.0,0.00018541,2]
[378722531,1754991041447,-460.0,0.00018541,2]
[378722532,1754991041458,-460.0,0.00018541,2]
[378722533,1754991041469,-460.0,0.00018541,2]
[378722534,1754991041481,-472.09774763,0.00018541,2]
[378722535,1754991041493,-460.0,0.00018541,2]
[378722536,1754991041505,-460.0,0.00018541,2]
[378722537,1754991041516,-460.0,0.00018541,2]
[378722538,1754991041528,-2187.09,0.00018541,2]
[378722539,1754991041539,-929.85,0.00018541,2]
[378722540,1754991041551,-460.0,0.00018541,2]
[378722541,1754991041563,-462.24047092,0.00018541,2]
[378722542,1754991041574,-460.0,0.00018541,2]
[378722543,1754991041585,-460.57204126,0.00018541,2]
[378722544,1754991041597,-1081.29,0.00018541,2]
[378722545,1754991041609,-460.0,0.00018541,2]
[378722546,1754991041619,-264.6872516,0.00018541,2]
[378722547,1754991041629,-193.53560906,0.00018541,2]
[378722548,1754991041640,-460.0,0.00018541,2]
[378722549,1754991041651,-837.88,0.00018541,2]
[378722550,1754991041660,-460.0,0.00018541,2]
[378722551,1754991041671,-460.0,0.00018541,2]
[378722552,1754991041681,-543.68,0.00018541,2]
[378722553,1754991041692,-464.30748878,0.00018541,2]
[378722554,1754991041703,-460.0,0.00018541,2]
[378722555,1754991041715,-462.82029497,0.00018541,2]
[378722556,1754991041727,-460.0,0.00018541,2]
[378722557,1754991041738,-471.36,0.00018541,2]
[378722558,1754991041748,-460.0,0.00018541,2]
[378722559,1754991041758,-460.0,0.00018541,2]
[378722560,1754991041768,-451.49923524,0.00018541,2]
[378722561,1754991041779,-460.0,0.00018541,2]
[378722562,1754991041789,-460.0,0.00018541,2]
[378722563,1754991041800,-2556.88,0.00018541,2]
[378722564,1754991041811,-1052.34,0.00018541,2]
[378722565,1754991041822,-460.0,0.00018541,2]
[378722566,1754991041832,-1254.33,0.00018541,2]
[378722567,1754991041843,-6500.36,0.00018541,2]
[378722568,1754991041853,-460.0,0.00018541,2]
[378722569,1754991041863,-460.0,0.00018541,2]
[378722570,1754991041874,-666.3,0.00018541,2]
[378722571,1754991041884,-461.89387212,0.00018541,2]
[378722572,1754991041894,-2750.1,0.00018541,2]
[378722573,1754991041904,-461.73605507,0.00018541,2]
[378722574,1754991041915,-461.5335989,0.00018541,2]
[378722575,1754991041926,-462.08034883,0.00018541,2]
[378722576,1754991041936,-460.0,0.00018541,2]
[378722577,1754991041946,-460.0,0.00018541,2]
[378722578,1754991041957,-347.47425904,0.00018541,2]
[378722579,1754991041967,-460.0,0.00018541,2]
[378722580,1754991041978,-460.0,0.00018541,2]
[378722581,1754991041988,-3337.89,0.00018541,2]
[378722582,1754991041999,-460.0,0.00018541,2]
[378722583,1754991042009,-2903.3,0.00018541,2]
[378722584,1754991042019,-1295.91,0.00018541,2]
[378722585,1754991042029,-460.0,0.00018541,2]
[378722586,1754991042040,-460.0,0.00018541,2]
[378722587,1754991042050,-546.48,0.00018541,2]
[378722588,1754991042061,-460.0,0.00018541,2]
[378722589,1754991042071,-460.0,0.00018541,2]
[378722590,1754991042081,-1571.49,0.00018541,2]
[378722591,1754991042096,-1796.62,0.00018541,2]
[378722592,1754991042107,-460.0,0.00018541,2]
[378722593,1754991042117,-1439.14,0.00018541,2]
[378722594,1754991042127,-460.66301033,0.00018541,2]
[378722595,1754991042138,-460.89620435,0.00018541,2]
[378722596,1754991042151,-2098.01,0.00018541,2]
[378722597,1754991042163,-460.0,0.00018541,2]
[378722598,1754991042180,-1013.91,0.00018541,2]
[378722599,1754991042191,-1129.8,0.00018541,2]
[378722600,1754991042201,-461.08371146,0.00018541,2]
[378722601,1754991042212,-833.93,0.00018541,2]
[378722602,1754991042224,-460.0,0.00018542,2]
[378722603,1754991042235,-460.85742538,0.00018542,2]
[378722604,1754991042245,-460.0,0.00018542,2]
[378722605,1754991042256,-471.88,0.00018542,2]
[378722606,1754991042266,-463.79340223,0.00018542,2]
[378722607,1754991042276,-461.75423055,0.00018542,2]
[378722608,1754991042286,-461.21961858,0.00018542,2]
[378722609,1754991042296,-460.0,0.00018542,2]
[378722610,1754991042307,-1104.72,0.00018542,2]
[378722611,1754991042317,-460.0,0.00018542,2]
[378722612,1754991042327,-460.0,0.00018542,2]
[378722613,1754991042340,-460.0,0.00018542,2]
[378722614,1754991042350,-641.32,0.00018542,2]
[378722615,1754991042360,-460.0,0.00018542,2]
[378722616,1754991042370,-460.0,0.00018542,2]
[378722617,1754991042380,-460.0,0.00018542,2]
[378722618,1754991042391,-460.0,0.00018542,2]
[378722619,1754991042402,-460.0,0.00018542,2]
[378722620,1754991042414,-603.42,0.00018542,2]
[378722621,1754991042424,-460.0,0.00018542,2]
[378722622,1754991042434,-460.0,0.00018542,2]
[378722623,1754991042445,-527.25,0.00018542,2]
[378722624,1754991042455,-1181.0,0.00018542,2]
[378722625,1754991042465,-460.0,0.00018542,2]
[378722626,1754991042475,-500.0,0.00018542,2]
[378722627,1754991042486,-488.61,0.00018542,2]
[378722628,1754991042496,-460.0,0.00018542,2]
[378722629,1754991042508,-460.0,0.00018542,2]
[378722630,1754991042519,-460.0,0.00018542,2]
[378722631,1754991042530,-460.0,0.00018542,2]
[378722632,1754991042540,-1676.58,0.00018542,2]
[378722633,1754991042550,-466.96211858,0.00018542,2]
[378722634,1754991042560,-460.0,0.00018542,2]
[378722635,1754991042570,-460.0,0.00018542,2]
[378722636,1754991042580,-460.0,0.00018542,2]
[378722637,1754991042592,-460.0,0.00018542,2]
[378722638,1754991042602,-460.0,0.00018542,2]
[378722639,1754991042612,-460.0,0.00018542,2]
[378722640,1754991042623,-463.78344434,0.00018542,2]
[378722641,1754991042633,-464.52511111,0.00018542,2]
[378722642,1754991042644,-462.97912219,0.00018542,2]
[378722643,1754991042654,-1000.0,0.00018543,2]
[378722644,1754991042664,-1000.0,0.00018543,2]
[378722645,1754991042674,-1000.0,0.00018543,2]
[378722646,1754991042684,-1000.0,0.00018543,2]
[378722647,1754991042695,-1000.0,0.00018543,2]
[378722648,1754991042705,-1000.0,0.00018543,2]
[378722649,1754991042715,-500.0,0.00018544,2]
[378722650,1754991042727,-500.0,0.00018544,2]
[378722651,1754991042737,-500.0,0.00018544,2]
[378722652,1754991042747,-500.0,0.00018544,2]
[378722653,1754991042758,-500.0,0.00018544,2]
[378722654,1754991042767,-500.0,0.00018544,2]
[378722655,1754991042777,-500.0,0.00018544,2]
[378722656,1754991042787,-595.73,0.00018544,2]
[378722657,1754991042797,-1000.0,0.00018544,2]
[378722658,1754991042807,-1000.0,0.00018544,2]
[378722659,1754991042817,-1000.0,0.00018544,2]
[378722660,1754991042827,-1000.0,0.00018544,2]
[378722661,1754991042839,-1000.0,0.00018544,2]
[378722662,1754991042849,-1000.0,0.00018544,2]
[378722663,1754991042859,-168.0,0.00018545,2]
[378722664,1754991042869,-501.614482,0.00018545,2]
[378722665,1754991042879,-460.0,0.00018545,2]
[378722666,1754991042889,-460.0,0.00018545,2]
[378722667,1754991042900,-409.25115074,0.00018545,2]
[378722668,1754991042910,-768.93726421,0.00018546,2]
[378722669,1754991042920,-500.0,0.00018573,2]
[378722670,1754991042930,-500.0,0.00018573,2]
[378722671,1754991042940,-503.85653375,0.00018573,2]
[378722672,1754991042951,-501.14541372,0.00018573,2]
[378722673,1754991042961,-500.0,0.00018573,2]
[378722674,1754991042971,-500.0,0.00018573,2]
[378722675,1754991042982,-500.0,0.00018573,2]
[378722676,1754991042992,-499.95460493,0.00018573,2]
[378722677,1754991043002,-500.0,0.00018573,2]
[378722678,1754991043012,-500.0,0.00018573,2]
[378722679,1754991043022,-500.0,0.00018573,2]
[378722681,1754991043032,-500.0,0.00018573,2]
[378722682,1754991043042,-500.0,0.00018573,2]
[378722683,1754991043052,-500.0,0.00018573,2]
[378722684,1754991043062,-1763.60241689,0.00018575,2]
[378722685,1754991043073,-168.0,0.00018662,2]
[378722686,1754991043083,-356.0,0.00018663,2]
[378722688,1754991043093,-460.0,0.00018716,2]
[378722690,1754991043103,-460.0,0.00018716,2]
[378722692,1754991043112,-2038.88,0.00018717,2]
[378722693,1754991043124,-2504.93,0.00018717,2]
[378722694,1754991043134,-478.19438266,0.00018717,2]
[378722695,1754991043147,-577.62,0.00018717,2]
[378722696,1754991043156,-460.0,0.00018717,2]
[378722697,1754991043166,-2847.45,0.00018717,2]
[378722699,1754991043178,-476.6,0.00018717,2]
[378722700,1754991043189,-709.38,0.00018717,2]
[378722701,1754991043199,-1600.99,0.00018717,2]
[378722702,1754991043210,-460.0,0.00018717,2]
[378722703,1754991043220,-938.74,0.00018717,2]
[378722704,1754991043230,-460.0,0.00018717,2]
[378722705,1754991043240,-460.0,0.00018717,2]
[378722706,1754991043250,-636.14,0.00018717,2]
[378722707,1754991043260,-920.34,0.00018717,2]
[378722708,1754991043271,-460.0,0.00018717,2]
[378722709,1754991043281,-597.04,0.00018717,2]
[378722710,1754991043291,-658.92,0.00018717,2]
[378722711,1754991043302,-460.0,0.00018717,2]
[378722713,1754991043311,-808.0,0.00018717,2]
[378722714,1754991043321,-1714.91,0.00018717,2]
[378722719,1754991043563,-919.35,0.00018717,2]
[378722721,1754991043582,-1201.48,0.00018717,2]
[378722722,1754991043596,-570.3,0.00018717,2]
[378722723,1754991043605,-460.0,0.00018717,2]
[378722724,1754991043615,-3031.66,0.00018717,2]
[378722725,1754991043624,-673.01,0.00018717,2]
[378722726,1754991043633,-580.87,0.00018717,2]
[378722727,1754991043642,-460.0,0.00018717,2]
[378722728,1754991043651,-635.1,0.00018717,2]
[378722729,1754991043660,-500.57319792,0.00018717,2]
[378722730,1754991043669,-460.0,0.00018717,2]
[378722731,1754991043678,-168.0,0.0001873,2]
[378722732,1754991043687,-168.0,0.00018794,2]
[378722733,1754991043696,-1763.60241689,0.00018805,2]
[378722734,1754991043706,-460.0,0.00018807,2]
[378722735,1754991043715,-460.0,0.00018807,2]
[378722736,1754991043724,-460.0,0.00018807,2]
[378722737,1754991043733,-460.0,0.00018807,2]
[378722738,1754991043743,-927.22,0.00018807,2]
[378722739,1754991043752,-574.32708225,0.00018807,2]
[378722740,1754991043761,-460.0,0.00018807,2]
[378722741,1754991043771,-460.0,0.00018807,2]
[378722742,1754991043780,-460.0,0.00018807,2]
[378722743,1754991043789,-460.0,0.00018807,2]
[378722744,1754991043798,-297.97848755,0.00018807,2]
[378722745,1754991043807,-481.59,0.00018807,2]
[378722746,1754991043816,-460.0,0.00018807,2]
[378722747,1754991043825,-460.0,0.00018807,2]
[378722748,1754991043837,-460.0,0.00018807,2]
[378722749,1754991043846,-460.0,0.00018807,2]
[378722750,1754991043856,-460.0,0.00018807,2]
[378722751,1754991043865,-460.0,0.00018807,2]
[378722752,1754991043874,-310.63020134,0.00018807,2]
[378722753,1754991043885,-462.23337633,0.00018807,2]
[378722754,1754991043894,-467.35413678,0.00018807,2]
[378722755,1754991043905,-472.14,0.00018807,2]
[378722756,1754991043916,-466.60621173,0.00018807,2]
[378722757,1754991043925,-460.0,0.00018807,2]
[378722758,1754991043935,-416.68215033,0.00018807,2]
[378722759,1754991043944,-460.0,0.00018807,2]
[378722760,1754991043953,-460.0,0.00018807,2]
[378722761,1754991043962,-460.0,0.00018807,2]
[378722762,1754991043972,-460.0,0.00018807,2]
[378722763,1754991043981,-460.0,0.00018807,2]
[378722764,1754991043992,-460.0,0.00018807,2]
[378722765,1754991044009,-460.0,0.00018807,2]
[378722766,1754991044018,-460.0,0.00018807,2]
[378722767,1754991044027,-525.01640546,0.00018807,2]
[378722768,1754991044036,-463.43118184,0.00018807,2]
[378722769,1754991044047,-460.0,0.00018807,2]
[378722770,1754991044056,-463.1423305,0.00018807,2]
[378722771,1754991044066,-460.0,0.00018807,2]
[378722772,1754991044075,-460.0,0.00018807,2]
[378722773,1754991044084,-230.23834961,0.00018807,2]
[378722774,1754991044093,-460.0,0.00018807,2]
[378722775,1754991044102,-460.0,0.00018807,2]
[378722776,1754991044111,-460.0,0.00018807,2]
[378722777,1754991044121,-460.0,0.00018807,2]
[378722778,1754991044130,-460.0,0.00018807,2]
[378722779,1754991044142,-460.0,0.00018807,2]
[378722780,1754991044151,-460.0,0.00018807,2]
[378722781,1754991044160,-460.0,0.00018807,2]
[378722782,1754991044169,-460.0,0.00018807,2]
[378722783,1754991044179,-838.04,0.00018807,2]
[378722784,1754991044188,-200.0,0.00018808,15]
[378722785,1754991044198,-200.0,0.00018808,15]
[378722786,1754991044207,-460.0,0.00018815,2]
[378722787,1754991044218,-460.0,0.00018815,2]
[378722788,1754991044227,-460.0,0.00018815,2]
[378722789,1754991044236,-460.0,0.00018815,2]
[378722790,1754991044245,-460.0,0.00018815,2]
[378722791,1754991044255,-460.0,0.00018815,2]
[378722792,1754991044264,-460.0,0.00018815,2]
[378722793,1754991044273,-460.0,0.00018815,2]
[378722794,1754991044283,-460.0,0.00018815,2]
[378722795,1754991044292,-705.76,0.00018815,2]
[378722796,1754991044302,-539.2,0.00018815,2]
[378722797,1754991044311,-225.77619203,0.00018815,2]
[378722798,1754991044320,-460.0,0.00018815,2]
[378722799,1754991044330,-460.0,0.00018815,2]
[378722800,1754991044340,-460.0,0.00018815,2]
[378722801,1754991044350,-553.78,0.00018815,2]
[378722802,1754991044359,-460.0,0.00018815,2]
[378722803,1754991044369,-460.0,0.00018815,2]
[378722804,1754991044378,-733.71,0.00018815,2]
[378722805,1754991044388,-460.0,0.00018815,2]
[378722806,1754991044398,-646.45,0.00018815,2]
[378722807,1754991044407,-460.0,0.00018815,2]
[378722808,1754991044416,-460.0,0.00018815,2]
[378722809,1754991044426,-460.0,0.00018815,2]
[378722810,1754991044435,-460.0,0.00018815,2]
[378722811,1754991044444,-2187.09,0.00018815,2]
[378722812,1754991044453,-929.85,0.00018815,2]
[378722813,1754991044462,-1081.29,0.00018815,2]
[378722814,1754991044471,-460.0,0.00018815,2]
[378722815,1754991044481,-837.88,0.00018815,2]
[378722816,1754991044490,-543.68,0.00018815,2]
[378722817,1754991044499,-460.0,0.00018815,2]
[378722818,1754991044508,-471.36,0.00018815,2]
[378722819,1754991044517,-460.0,0.00018815,2]
[378722820,1754991044526,-460.0,0.00018815,2]
[378722821,1754991044536,-460.0,0.00018815,2]
[378722822,1754991044545,-2556.88,0.00018815,2]
[378722823,1754991044554,-1052.34,0.00018815,2]
[378722824,1754991044563,-460.0,0.00018815,2]
[378722825,1754991044572,-1254.33,0.00018815,2]
[378722826,1754991044581,-6500.36,0.00018815,2]
[378722827,1754991044592,-666.3,0.00018815,2]
[378722828,1754991044601,-2750.1,0.00018815,2]
[378722829,1754991044610,-460.0,0.00018815,2]
[378722830,1754991044619,-460.0,0.00018815,2]
[378722831,1754991044628,-3337.89,0.00018815,2]
[378722832,1754991044638,-460.0,0.00018815,2]
[378722833,1754991044647,-2903.3,0.00018815,2]
[378722834,1754991044656,-1295.91,0.00018815,2]
[378722835,1754991044665,-460.0,0.00018815,2]
[378722836,1754991044675,-460.0,0.00018815,2]
[378722837,1754991044684,-546.48,0.00018815,2]
[378722838,1754991044693,-460.0,0.00018815,2]
[378722839,1754991044702,-460.0,0.00018815,2]
[378722840,1754991044711,-1571.49,0.00018815,2]
[378722841,1754991044720,-1796.62,0.00018815,2]
[378722842,1754991044730,-460.0,0.00018815,2]
[378722843,1754991044739,-1439.14,0.00018815,2]
[378722844,1754991044748,-2098.01,0.00018815,2]
[378722845,1754991044757,-1013.91,0.00018815,2]
[378722846,1754991044766,-1129.8,0.00018815,2]
[378722847,1754991044775,-833.93,0.00018815,2]
[378722848,1754991044784,-460.0,0.00018816,2]
[378722849,1754991044793,-471.88,0.00018816,2]
[378722850,1754991044802,-460.0,0.00018816,2]
[378722851,1754991044811,-1104.72,0.00018816,2]
[378722852,1754991044820,-460.0,0.00018816,2]
[378722853,1754991044829,-460.0,0.00018816,2]
[378722854,1754991044839,-460.0,0.00018816,2]
[378722855,1754991044848,-641.32,0.00018816,2]
[378722856,1754991044857,-460.0,0.00018816,2]
[378722857,1754991044866,-460.0,0.00018816,2]
[378722858,1754991044876,-460.0,0.00018816,2]
[378722859,1754991044888,-603.42,0.00018816,2]
[378722860,1754991044897,-460.0,0.00018816,2]
[378722861,1754991044907,-460.0,0.00018816,2]
[378722862,1754991044916,-527.25,0.00018816,2]
[378722863,1754991044925,-1181.0,0.00018816,2]
[378722864,1754991044934,-460.0,0.00018816,2]
[378722865,1754991044943,-488.61,0.00018816,2]
[378722866,1754991044953,-460.0,0.00018816,2]
[378722867,1754991044962,-460.0,0.00018816,2]
[378722868,1754991044971,-473.41514246,0.00018816,2]
[378722869,1754991044981,-460.0,0.00018816,2]
[378722870,1754991044991,-1676.58,0.00018816,2]
[378722871,1754991045000,-460.0,0.00018816,2]
[378722872,1754991045009,-460.0,0.00018816,2]
[378722873,1754991045018,-460.0,0.00018816,2]
[378722874,1754991045031,-460.0,0.00018816,2]
[378722875,1754991045040,-460.0,0.00018816,2]
[378722876,1754991045052,-460.0,0.00018816,2]
[378722877,1754991045062,-460.0,0.00018819,2]
[378722878,1754991045071,-460.0,0.00018819,2]
[378722879,1754991045080,-168.0,0.00018867,2]
[378722880,1754991045090,-168.0,0.00018868,2]
[378722881,1754991045099,-500.0,0.00018873,2]
[378722882,1754991045108,-500.0,0.00018873,2]
[378722883,1754991045118,-500.0,0.00018873,2]
[378722884,1754991045127,-258.20539447,0.00018873,2]
[378722885,1754991045137,-500.0,0.00018873,2]
[378722886,1754991045147,-302.8183302,0.000189,2]
[378722887,1754991045157,-1802.00202987,0.000189,2]
[378722888,1754991045166,-302.84859387,0.000189,2]
[378722889,1754991045176,-303.95114847,0.00018925,2]
[378722890,1754991045185,-460.0,0.0001899,2]
[378722891,1754991045195,-460.0,0.0001899,2]
[378722892,1754991045204,-2038.88,0.00018991,2]
[378722893,1754991045215,-2504.93,0.00018991,2]
[378722894,1754991045224,-577.62,0.00018991,2]
[378722895,1754991045233,-460.0,0.00018991,2]
[378722896,1754991045242,-2847.45,0.00018991,2]
[378722897,1754991045251,-476.6,0.00018991,2]
[378722898,1754991045260,-709.38,0.00018991,2]
[378722899,1754991045269,-1600.99,0.00018991,2]
[378722900,1754991045278,-460.0,0.00018991,2]
[378722901,1754991045287,-938.74,0.00018991,2]
[378722902,1754991045297,-460.0,0.00018991,2]
[378722903,1754991045306,-636.14,0.00018991,2]
[378722904,1754991045316,-920.34,0.00018991,2]
[378722905,1754991045325,-460.0,0.00018991,2]
[378722906,1754991045334,-597.04,0.00018991,2]
[378722907,1754991045343,-658.92,0.00018991,2]
[378722908,1754991045353,-460.0,0.00018991,2]
[378722909,1754991045362,-808.0,0.00018991,2]
[378722910,1754991045371,-1714.91,0.00018991,2]
[378722911,1754991045380,-919.35,0.00018991,2]
[378722912,1754991045390,-1201.48,0.00018991,2]
[378722913,1754991045399,-570.3,0.00018991,2]
[378722914,1754991045408,-460.0,0.00018991,2]
[378722915,1754991045417,-3031.66,0.00018991,2]